Cogmind - Beta 14 @@@ ROGUE MODE // 2025.03.19 @ 23:33:24 Player: CLown Bot Result: Destroyed by S-10 Pest with Light Assault Rifle Performance ------------- Evolutions (1) 500 Regions Visited (4) 800 Robots Destroyed (38) 190 Value Destroyed (797) 797 Prototype IDs (2) 40 Alien Tech Used (0) 0 Bonus (24) 24 TOTAL SCORE: 2351 Bonus ------- High Alert Combat Kills 24 Cogmind --------- Core Integrity 0/400 Matter 95/300 Energy 52/100 System Corruption 0% Temperature Cool (0) Movement Core (150) Ox2 Location -9/Storage Parts ------- > --- POWER (1) -------- (None) > --- PROPULSION (2) --- (None) > --- UTILITY (3) ------ Small Storage Unit Power Shielding > --- WEAPON (3) ------- Light Assault Rifle > --- INVENTORY (8) ---- Light Angular Momentum Engine Improved Flight Unit High-capacity Battery (250) Sensor Array Signal Interpreter Drone Bay (0/2) Peak State ------------ > --- POWER ------------ Light Angular Momentum Engine > --- PROPULSION ------- Carbon-fiber Leg Carbon-fiber Leg > --- UTILITY ---------- Small Storage Unit Power Shielding Drone Bay > --- WEAPON ----------- Improved Lightning Gun Grenade Launcher Mini Grenade Launcher > --- INVENTORY -------- High-capacity Battery Sensor Array Signal Interpreter EM Pulse Gun Beamcaster Light Assault Rifle [Rating: 28] Favorites ----------- Power Ion Engine Engine Ion Engine Propulsion Light Treads Treads Light Treads Leg Carbon-fiber Leg Wheel Wheel Flight Unit Improved Flight Unit Utility Small Storage Unit Device Sensor Array Storage Small Storage Unit Protection Power Shielding Weapon Grenade Launcher Energy Gun EM Pulse Gun Energy Cannon Beam Cannon Ballistic Gun Light Assault Rifle Launcher Grenade Launcher Build | -11 -10 -10 -9 -9 ------- Run | Yrd Mat Min Mat Sto Slots Evolved 2 | . . . 2 . Power . | . . . . . Propulsion . | . . . . . Utility 1 | . . . 1 . Weapon 1 | . . . 1 . Parts Attached 27 | 6 3 . 2 16 Power 2 | 1 . . . 1 Engine 2 | 1 . . . 1 Core . | . . . . . Reactor . | . . . . . Propulsion 9 | 2 . . . 7 Treads 2 | 2 . . . . Leg 5 | . . . . 5 Wheel 1 | . . . . 1 Hover . | . . . . . Flight 1 | . . . . 1 Utility 4 | 1 1 . 1 1 Device 2 | . . . 1 1 Storage 1 | 1 . . . . Processor . | . . . . . Hackware . | . . . . . Protection 1 | . 1 . . . Artifact . | . . . . . Weapon 12 | 2 2 . 1 7 Energy Gun 5 | 1 . . . 4 Energy Cannon 1 | . . . 1 . Ballistic Gun 3 | 1 1 . . 1 Ballistic Cannon . | . . . . . Launcher 3 | . 1 . . 2 Special Weapon . | . . . . . Impact Weapon . | . . . . . Slashing Weapon . | . . . . . Piercing Weapon . | . . . . . Special Melee Weapon . | . . . . . Unidentified Prototypes 2 | . . . . 2 Parts Lost 8 | . . . . 8 Power 1 | . . . . 1 Propulsion 2 | . . . . 2 Utility . | . . . . . Weapon 5 | . . . . 5 Highest Loss Streak 5 | . . . . 5 To Critical Strikes . | . . . . . Average Slot Usage (%) 90 | . 85 100 99 86 Engine 10 | . 14 14 11 7 Treads 16 | . 28 28 22 6 Leg 7 | . . . . 13 Device 5 | . . . 10 7 Storage 12 | . 14 14 11 11 Protection 10 | . . 14 11 11 Energy Gun 11 | . 14 14 11 10 Energy Cannon 1 | . . . 11 . Launcher 15 | . 9 14 11 18 Peak Build Rating 28 | 6 7 7 9 28 Average Rating 12 | 3 6 7 8 17 On Entrance 5 | . 6 7 7 9 Naked Turns . | . . . . . Heaviest Build 30 | 13 16 16 20 30 Greatest Support 40 | 40 40 40 40 40 Greatest Overweight (x) 3 | . . . . 3 Average Overweight (x) . | . . . . . Largest Inventory Capacity 8 | 8 8 8 8 8 Average Capacity 7 | 6 8 8 8 8 Most Carried 8 | 5 7 6 5 8 Average Carried 5 | 2 4 6 4 5 Final Capacity 8 | 8 8 8 8 8 Final Carried 6 | 1 6 6 5 6 Class Distribution -------------------- 47% | Mutant 37% | Skirmisher 15% | Bomber Dominant Class ---------------- Mutant | -10/Materials Mutant | -10/Mines Skirmisher | -9/Materials Skirmisher | -9/Storage Resources | -11 -10 -10 -9 -9 ----------- Run | Yrd Mat Min Mat Sto Matter Collected 518 | 89 56 107 36 230 Remotely . | . . . . . Salvage Created 856 | . 284 . 36 536 Parts 75 | . 20 . 3 52 Haulers Intercepted 1 | . . . . 1 Recyclers Shooed . | . . . . . Parts Field Recycled . | . . . . . Retrieved Matter . | . . . . . Parts Self-Destructed . | . . . . . Prevented . | . . . . . Kills | -11 -10 -10 -9 -9 ------- Run | Yrd Mat Min Mat Sto Combat Hostiles Destroyed 23 | . 3 . 1 19 Guns 9 | . 2 . 1 6 AOE 14 | . 1 . . 13 Classes Destroyed 9 | . 4 . . 5 Worker 4 | . . . . 4 Builder 4 | . 1 . . 3 Hauler 1 | . . . . 1 Recycler 1 | . 1 . . . Mechanic 2 | . . . . 2 Watcher 3 | . 2 . . 1 Swarmer 7 | . . . . 7 Grunt 12 | . 3 . 1 8 Sentry 4 | . . . . 4 Best Kill Streak 7 | . 4 . 1 7 Combat Bots Only 6 | . 2 . 1 6 Max Kills in Single Turn 4 | . 2 . 1 4 Gunslinging . | . . . . . Exploded 3 | . 1 . . 3 Melee . | . . . . . Uniques/NPCs Destroyed . | . . . . . Combat | -11 -10 -10 -9 -9 -------- Run | Yrd Mat Min Mat Sto Hostile Shots Fired 159 | . 15 . . 144 Missed 56 | . 4 . . 52 Damage Taken 1403 | . 162 . . 1241 Core 433 | . 27 . . 406 Absorbed by Shields . | . . . . . Redirected to Shielding 28 | . . . . 28 Core Remaining (%) 94 | 100 . 89 . . Volleys Fired 63 | . 17 . 1 45 Largest 3 | . 2 . 2 3 Hottest 135 | . 70 . 100 135 Shots Fired 102 | . 30 . 2 70 Gun 72 | . 27 . 1 44 Cannon 1 | . . . 1 . Launcher 29 | . 3 . . 26 Special . | . . . . . Kinetic 14 | . 10 . . 4 Thermal 35 | . . . 1 34 Explosive 29 | . 3 . . 26 Electromagnetic 24 | . 17 . 1 6 Robot Hit Streak 7 | . 7 . 2 5 Robot Miss Streak 3 | . 3 . . 2 Penetration Max . | . . . . . Secondary Targets 1 | . 1 . . . Max Gunslinging Chain 1 | . 1 . . . Shots Hit Robots 46 | . 13 . 1 32 Core Hits 63 | . 10 . 1 52 Critical Kills . | . . . . . Critical Parts Destroyed . | . . . . . Critical Strikes 2 | . . . . 2 Burn 2 | . . . . 2 Melee Attacks . | . . . . . Impact . | . . . . . Slashing . | . . . . . Piercing . | . . . . . Sneak Attacks . | . . . . . Combat Hostiles . | . . . . . Follow-up Attacks . | . . . . . Damage Inflicted 2259 | . 340 . 15 1904 Guns 666 | . 178 . 15 473 Cannons . | . . . . . Explosions 1583 | . 162 . . 1421 Melee . | . . . . . Ramming 10 | . . . . 10 Kinetic 63 | . 40 . . 23 Thermal 395 | . 34 . . 361 Explosive 1549 | . 128 . . 1421 Electromagnetic 242 | . 138 . 15 89 Impact . | . . . . . Slashing . | . . . . . Piercing . | . . . . . Highest Corruption . | . . . . . Average Corruption . | . . . . . Corruption Purged . | . . . . . Corruption Blocked . | . . . . . Overload Shots . | . . . . . Overflow Damage 27 | . . . . 27 Projectiles . | . . . . . Explosions 27 | . . . . 27 Melee . | . . . . . Knockbacks . | . . . . . Impact . | . . . . . Kinetic . | . . . . . Secondary . | . . . . . Self-Inflicted Damage 107 | . . . . 107 Shots 4 | . . . . 4 Rammed . | . . . . . Targets Rammed 3 | . . . . 3 Kicked 3 | . . . . 3 Crushed . | . . . . . Highest Temperature 254 | . 125 . 30 254 Average Temperature 73 | . 44 . 17 83 Received Heat Transfer 528 | . 123 . . 405 Siege Activations . | . . . . . Robots Corrupted . | . . . . . Combat Hostiles . | . . . . . Parts Fried . | . . . . . Impact Corruptions . | . . . . . Robots Melted . | . . . . . Combat Hostiles . | . . . . . Parts Melted 1 | . . . . 1 Heat Transferred 777 | . . . . 777 Parts Sabotaged . | . . . . . Parts Stolen . | . . . . . Parts Stripped . | . . . . . Power Chain Reactions 1 | . 1 . . . Alert | -11 -10 -10 -9 -9 ------- Run | Yrd Mat Min Mat Sto Peak Influence 508 | . 138 53 52 508 Initial 53 | . . 53 20 21 Average 187 | . 76 53 24 316 Maximum Alert Level 2 | . . . . 2 Low Security (%) 53 | 100 100 100 100 9 Level 1 37 | . . . . 73 Level 2 8 | . . . . 16 Level 3 . | . . . . . Level 4 . | . . . . . Level 5 . | . . . . . High Security . | . . . . . Max Security . | . . . . . Squads Dispatched 6 | . 2 . 1 3 Investigation 2 | . 1 . 1 . Extermination . | . . . . . Reinforcement 4 | . 1 . . 3 Assault . | . . . . . Garrison . | . . . . . Intercept . | . . . . . Searches Triggered . | . . . . . Construction Impeded 2 | . . . . 2 Haulers Reinforced . | . . . . . Active Scanning Responses . | . . . . . Cargo Convoy Interrupts . | . . . . . Stealth | -11 -10 -10 -9 -9 --------- Run | Yrd Mat Min Mat Sto Distress Signals 3 | . 1 . . 2 Communications Jammed . | . . . . . Distress Signals . | . . . . . Times Spotted 31 | . 6 . 1 24 Peak Tracking Total 6 | . 2 . 2 6 Tactical Retreats . | . . . . . Traps | -11 -10 -10 -9 -9 ------- Run | Yrd Mat Min Mat Sto Traps Triggered 4 | . . . 1 3 Indirectly . | . . . . . Trap Hack Attempts . | . . . . . Triggered . | . . . . . Disarmed . | . . . . . Reprogrammed . | . . . . . Reused . | . . . . . Traps Extracted . | . . . . . Installed . | . . . . . Triggered . | . . . . . Machines | -11 -10 -10 -9 -9 ---------- Run | Yrd Mat Min Mat Sto Machines Disabled 2 | . . . . 2 Max in Single Turn 1 | . . . . 1 Machines Repaired . | . . . . . Machines Dismantled . | . . . . . Machines Sabotaged . | . . . . . Overloaded Fab Kills . | . . . . . Hacking | -11 -10 -10 -9 -9 --------- Run | Yrd Mat Min Mat Sto Machines Accessed 5 | . 2 . 1 2 Terminals 5 | . 2 . 1 2 Fabricators . | . . . . . Repair Stations . | . . . . . Recycling Units . | . . . . . Scanalyzers . | . . . . . Garrison Access . | . . . . . Total Hacks 9 | . 4 . 2 3 Successful 6 | . 2 . 2 2 Failed 3 | . 2 . . 1 Catastrophic 1 | . 1 . . . Database Lockouts . | . . . . . Manual . | . . . . . Terminals 9 | . 4 . 2 3 Fabricators . | . . . . . Repair Stations . | . . . . . Recycling Units . | . . . . . Scanalyzers . | . . . . . Garrison Access . | . . . . . Terminal Hacks 6 | . 2 . 2 2 Record 1 | . . . 1 . Open Door 2 | . . . . 2 Emergency Access Points 1 | . 1 . . . Locate Traps 1 | . . . 1 . Investigation Status 1 | . 1 . . . Fabricator Hacks . | . . . . . Repair Station Hacks . | . . . . . Recycling Unit Hacks . | . . . . . Scanalyzer . | . . . . . Garrison Access Hacks . | . . . . . Unauthorized Hacks . | . . . . . Terminals . | . . . . . Fabricators . | . . . . . Repair Stations . | . . . . . Recycling Units . | . . . . . Scanalyzers . | . . . . . Garrison Access . | . . . . . Data Cores Recovered . | . . . . . Used . | . . . . . Hacking Detections 1 | . 1 . . . Full Trace Events 1 | . 1 . . . Feedback Events . | . . . . . Feedback Blocked . | . . . . . Robot Schematics Acquired . | . . . . . Robots Built . | . . . . . Authchips . | . . . . . Time . | . . . . . Total Robot Build Rating . | . . . . . Part Schematics Acquired . | . . . . . Parts Built . | . . . . . Authchips . | . . . . . Time . | . . . . . Total Part Build Rating . | . . . . . Parts Repaired . | . . . . . Time . | . . . . . Parts Recycled . | . . . . . Recycled Matter . | . . . . . Retrieved Matter . | . . . . . Retrieved Components . | . . . . . Parts Scanalyzed . | . . . . . Part Schematics Acquired . | . . . . . Parts Damaged . | . . . . . Bothacking | -11 -10 -10 -9 -9 ------------ Run | Yrd Mat Min Mat Sto Used RIF Installer . | . . . . . Robots Hacked . | . . . . . Non-combat . | . . . . . Combat . | . . . . . Robot Hacks Applied . | . . . . . Relay Couplers Released . | . . . . . Fabnet Peak Effective % . | . . . . . Robots Rewired . | . . . . . Allies Hacked . | . . . . . Hacks Repelled . | . . . . . Allies | -11 -10 -10 -9 -9 -------- Run | Yrd Mat Min Mat Sto Total Allies 2 | . . 2 . . Largest Group 2 | . . 2 1 1 Highest-Rated Group 52 | . . 52 31 28 Highest-Rated Ally 31 | . . 31 31 28 Total Orders . | . . . . . Ally Attacks 1 | . . . 1 . Total Damage 21 | . . . 21 . Kills . | . . . . . Allies Corrupted . | . . . . . Allies Melted . | . . . . . Intel | -11 -10 -10 -9 -9 ------- Run | Yrd Mat Min Mat Sto Robot Analysis Total . | . . . . . Derelict Logs Recovered 1 | . . 1 . . Drone Launches 2 | . . . . 2 Drone Recoveries . | . . . . . Exploration | -11 -10 -10 -9 -9 ------------- Run | Yrd Mat Min Mat Sto Turns Passed 1815 | 51 260 397 173 934 Spaces Moved 1119 | 37 129 249 105 599 Core 37 | 17 . . . 20 Treads 647 | 20 129 249 105 144 Legs 435 | . . . . 435 Wheels . | . . . . . Hover . | . . . . . Flight . | . . . . . Fastest Speed 50 | 50 160 160 160 100 Average Speed 142 | 109 160 160 160 130 Slowest Speed 200 | 160 160 160 160 200 Overloaded Moves . | . . . . . Propulsion Burnouts . | . . . . . Robots Hopped 2 | . . . . 2 Cave-ins Triggered . | . . . . . Exploration Rate (%) 31 | 3 25 72 11 45 Regions Visited 4 Branch Regions 2 Pre-discovered Areas . | . . . . . Known Exits Taken . | . . . . . Unknown Exits Taken 4 | 1 1 1 1 . Scrap Searched 2 | . . 2 . . Spaces Dug . | . . . . . Terrain Destroyed 168 | . 10 . . 158 Melee . | . . . . . Projectile . | . . . . . AOE 168 | . 10 . . 158 Terrain Rammed . | . . . . . Walls Destroyed . | . . . . . Machines Disabled . | . . . . . Actions | -11 -10 -10 -9 -9 --------- Run | Yrd Mat Min Mat Sto Total 1250 | 47 156 248 108 691 Wait . | . . . . . Move 1111 | 36 128 248 104 595 Hop 2 | . . . . 2 Pick Up 24 | 5 6 . 1 12 Fast Attach 2 | 2 . . . . Attach 21 | 4 3 . 2 12 Detach 5 | . 2 . . 3 Swap 4 | . . . . 4 Drop 6 | . . . . 6 Fire 63 | . 17 . 1 45 Melee . | . . . . . Ram . | . . . . . Kick 3 | . . . . 3 Crush . | . . . . . Escape Stasis . | . . . . . Rewire 9 | . . . . 9 Trap . | . . . . . Miscellaneous . | . . . . . Route ------- -11/Scrapyard -10/Materials -10/Mines -9/Materials -9/Storage History --------- Turn | Location | Event 12 | -11/Scrapyard | Discovered new exit (range 16) 52 | -11/Scrapyard | Entered Materials 231 | -10/Materials | Discovered new exit (range 12) 310 | -10/Materials | Build established: Mutant 312 | -10/Materials | Entered Mines 431 | -10/Mines | Learned Materials emergency access door positions 698 | -10/Mines | Discovered new exit (range 8) 709 | -10/Mines | Entered Materials 709 | -9/Materials | Accompanied by 1 ally 709 | -9/Materials | Evolved 2 slots: Utility x1, Weapon x1 714 | -9/Materials | Led the pair of lost Derelicts to an unsafe place 869 | -9/Materials | Discovered new exit (range 6) 882 | -9/Materials | Entered Storage 882 | -9/Storage | Accompanied by 1 ally 1220 | -9/Storage | Build established: Skirmisher 1749 | -9/Storage | Core integrity fell below 50% 1788 | -9/Storage | Lost 5 parts (2n3w) 1789 | -9/Storage | Core integrity fell below 20% 1816 | -9/Storage | Destroyed by S-10 Pest with Light Assault Rifle Last Messages --------------- U-05 Engineer lays Concrete. K-01 Serf collects debris. Acquired 10 matter. U-05 Engineer lays Concrete. Acquired 16 matter. U-05 Engineer lays Concrete. R-06 Scavenger collects Heat Sink. U-05 Engineer lays Concrete. K-01 Serf collects debris. U-05 Engineer lays Concrete. Acquired Lgt. Assault Rifle. U-05 Engineer lays Concrete. K-01 Serf collects debris. U-05 Engineer lays Concrete. K-01 Serf collects debris. U-05 Engineer lays Concrete. R-06 Scavenger collects Sml. Laser. U-05 Engineer lays Concrete. U-05 Engineer builds a Wall. K-01 Serf collects debris. Map ----- +----------------------------------------------------+ | # # #????????????????? ???????????????? | | # + """" #????????????????? ???????????????? | | # # ""??" #????????????????? ???????????????? | | # # ""???" #?????????????????# #???????????????? | | # + "???"" #???????#########?# #???????????????? | | # # "??"" #???????# # ### #???????????????? | | # # """" #???##### ## #???????????????? | | # # #???# # # ####????????????? | | # # #???# +????????????? | | # ############## # ######????????????? | | ## # =! # #?????????????????? | | ## # ]%= # #?????????????????? | | + # = #### ##?????????????????? | | ## # #??# #??????????????????? | | *## # #??#+#??????????????????? | | #######[ # #???????????????????????? | | # # # #???????????????????????? | | ## #########/## #???????????????????????? | | ############# ##+###+##???????????????????????? | | ??# # r ##???????????????????????? | | ??# """ ! T#???????????????????????? | | ??# "R" *** "" ##???????????????????????? | | ??# " " # [*** Y" #???????????????????????? | | ??# """ # *%** "" ##########+##T#??????????? | | ??# "" + k *%= s "?????????? | | ??# """ # *= uok @ % "?????????? | | ??# # ##"T"#####+######???????????????? | | ??###### ##### # ##"""#??????????????????????????? | | ???????##??#T #######??????????????????????????? | | ???????????##" "#????????????????????????????????? | | ????????????#!!!#????????????????????????????????? | | ????????????#!!!#????????????????????????????????? | | ????????????#####????????????????????????????????? | | ?????????????????????????????????????????????????? | | | | | | | | | | | | | | | | | | | | | | | | | | | | | | | | | +----------------------------------------------------+ Best States ------------- Heat Dissipation 28 Energy Generation 18 Energy Capacity 250 Matter Stores 238 Matter Capacity 300 Sight Range 16 Robot Scan Range 14 Terrain Scan Density 10 Power Shielding 33 Evasion (%) 55 Recoil Reduction 2 Item Schematics ----------------- None Robot Schematics ------------------ None Fabricated ------------ Nothing Alien Tech Used ----------------- None Achievements -------------- One Hack Too Far Oops Challenges ------------ None Game ------ Seed LargeMeleeExtrapolator Manual? 0 Play Time 00:21:14 Cumulative 1.6 hours Start 2025.03.19 @ 23:14:04 End 2025.03.19 @ 23:33:24 Sessions 1 Manual Loads 0 Difficulty Rogue Special Mode None Game No. 7 Rogue 7 Adventurer 0 Explorer 0 Win Type - Total 0 Types 0/0/0/0/0/0/0/0/0 Lore% 0 Gallery% 5 Achievement% 4 Wizard Run 0 Options --------- Layout 1 ASCII 0 Keyboard 0 Movement Mouse Keybinds 0 Fullscreen 2 Font 24/Smallcaps Map View 50x35 Zoom Use 0% Tactical HUD 0 Map Filters NONE Filters NONE Steam 1 RUN: f375fc1a-a888-4887-a30b-70a4e04cc2ee